[Event "Turkish-ch Youth U17 2024"]
[Site "Belek Antalya"]
[Date "2024.01.25"]
[Round "7"]
[White "Cetin, Defne"]
[Black "Akin, Duru"]
[Result "0-1"]
[ECO "B51"]
[WhiteElo "1350"]
[BlackElo "1474"]
[Annotator "NA RC COMBH"]
[PlyCount "122"]
[EventDate "2024.01.21"]
[EventType "swiss"]
[EventCountry "TUR"]
[SourceTitle "playchess.com"]
[Source "ChessBase"]
[SourceQuality "1"]
[TimeControl "5400+30"]

1. e4 {[%emt 0:01:00]} c5 {[%emt 0:06:00]} 2. Nf3 {[%emt 0:00:30]} d6 {[%emt 0:00:30]} 3. Bb5+ {[%emt 0:00:30]} Nd7 {[%emt 0:00:30]} 4. O-O {[%emt 0:01:30]} a6 {[%emt 0:03:30]} 5. Bxd7+ {[%emt 0:08:30]} Bxd7 {[%emt 0:00:00]} 6. d4 {[%emt 0:01:30]} cxd4 {[%emt 0:00:00]} 7. Nxd4 {[%emt 0:00:30]} Nf6 {[%emt 0:01:30]} 8. Qe2 {[%emt 0:11:30]} e5 {[%emt 0:02:30]} 9. Nf3 {[%emt 0:01:30]} Rc8 {[%emt 0:00:30]} 10. Nc3 {[%emt 0:06:30]} h6 {[%emt 0:03:30]} 11. Rd1 {[%emt 0:03:30]} Qc7 {[%emt 0:00:30]} 12. Nd2 {[%emt 0:11:30]} b5 {[%emt 0:02:30]} 13. a3 {[%emt 0:00:00]} Be7 {[%emt 0:00:30]} 14. Nf1 {[%emt 0:00:00]} O-O {[%emt 0:01:30]} 15. Ne3 {[%emt 0:04:30]} Be6 {[%emt 0:02:30]} 16. f3 {[%emt 0:05:30]} Rfd8 {[%emt 0:07:30]} 17. Kh1 {[%emt 0:08:30]} Bf8 {[%emt 0:04:30]} 18. Ned5 {[%emt 0:10:30]} Bxd5 {[%emt 0:11:30]} 19. exd5 {[%emt 0:00:30]} Qb7 {[%emt 0:00:30]} 20. Be3 {[%emt 0:02:30]} Rc4 {[%emt 0:14:30]} 21. a4 {[%emt 0:05:35]} Qc8 {[%emt 0:00:00]} 22. axb5 {[%emt 0:03:15]} axb5 {[%emt 0:02:00]} 23. Nxb5 {[%emt 0:02:53]} Rxc2 {[%emt 0:00:30]} 24. Rd2 {[%emt 0:00:54]} Rxd2 {[%emt 0:01:30]} 25. Qxd2 {[%emt 0:00:06]} Qb7 {[%emt 0:04:30]} 26. Nc3 {[%emt 0:00:41]} Rb8 {[%emt 0:00:30]} 27. Ra2 {[%emt 0:02:46]} Qb3 {[%emt 0:01:30]} 28. Qd3 {[%emt 0:02:45]} Rb4 {[%emt 0:03:30]} 29. h3 {[%emt 0:00:45]} e4 {[%emt 0:04:30]} 30. fxe4 {[%emt 0:00:53]} Nxe4 {[%emt 0:00:00]} 31. Ra3 {[%emt 0:01:15]} Qxb2 {[%emt 0:05:47]} 32. Nxe4 {[%emt 0:00:44]} Rxe4 {[%emt 0:00:30]} 33. Qxe4 {[%emt 0:00:30]} Qxa3 {[%emt 0:00:00]} 34. Kh2 {[%emt 0:01:00]} Qa8 {[%emt 0:01:22]} 35. Bf4 {[%emt 0:01:33]} Qd8 {[%emt 0:00:04]} 36. Qf3 {[%emt 0:00:09]} Be7 {[%emt 0:01:06]} 37. Qg3 {[%emt 0:00:13]} Kh7 {[%emt 0:00:24]} 38. Qd3+ {[%emt 0:00:25]} g6 {[%emt 0:00:28]} 39. Qe3 {[%emt 0:00:48]} Bg5 {[%emt 0:03:15]} 40. g3 {[%emt 0:00:47]} Bxf4 {[%emt 0:00:26]} 41. Qxf4 {[%emt 0:00:52]} Qe7 {[%emt 0:00:30]} 42. h4 {[%emt 0:00:30]} Kg7 {[%emt 0:00:47]} 43. Qd4+ {[%emt 0:00:48]} Qf6 {[%emt 0:00:30]} 44. Qd2 {[%emt 0:00:00]} Qe5 {[%emt 0:00:17]} 45. Kg2 {[%emt 0:00:00]} g5 {[%emt 0:00:39]} 46. hxg5 {[%emt 0:00:27]} hxg5 {[%emt 0:00:30]} 47. g4 {[%emt 0:00:22]} Qe4+ {[%emt 0:04:20]} 48. Kg3 {[%emt 0:00:30]} Kg6 {[%emt 0:00:01]} 49. Qd1 {[%emt 0:00:56]} f5 {[%emt 0:01:16]} 50. gxf5+ {[%emt 0:00:30]} Kxf5 {[%emt 0:00:32]} 51. Qb3 {[%emt 0:01:04]} Ke5 {[%emt 0:01:12]} 52. Qb7 {[%emt 0:00:12]} Qxd5 {[%emt 0:01:07]} 53. Qg7+ {[%emt 0:00:22]} Ke4 {[%emt 0:01:43]} 54. Qh7+ {[%emt 0:00:14]} Ke3 {[%emt 0:01:37]} 55. Qa7+ {[%emt 0:00:30]} Qd4 {[%emt 0:00:00]} 56. Qa3+ {[%emt 0:00:02]} Qd3 {[%emt 0:00:47]} 57. Qa7+ {[%emt 0:00:39]} Ke4+ {[%emt 0:01:30]} 58. Kg2 {[%emt 0:00:30]} Qe2+ {[%emt 0:00:05]} 59. Kh1 {[%emt 0:01:24]} Kf3 {[%emt 0:00:28]} 60. Qf7+ {[%emt 0:01:09]} Kg3 {[%emt 0:00:11]} 61. Qf2+ {[%emt 0:01:08]} Kxf2 {[%emt 0:00:07]} 0-1

[Event "Turkish-ch Youth U17 2024"]
[Site "Belek Antalya"]
[Date "2024.01.26"]
[Round "8"]
[White "Tarhan, Adar"]
[Black "Kilic, Eray"]
[Result "1/2-1/2"]
[ECO "B48"]
[WhiteElo "2420"]
[BlackElo "2452"]
[Annotator "TA"]
[PlyCount "47"]
[EventDate "2024.01.21"]
[EventType "swiss"]
[EventCountry "TUR"]
[SourceTitle "playchess.com"]
[Source "ChessBase"]
[SourceQuality "1"]
[TimeControl "5400+30"]

{[%evp 11,47,19,40,18,32,11,27,22,43,0,0,0,0,0,0,0,0,0,0,0,0,0,0,0,0,0,0,0,0,0,0,0,0,0,0,0,0,0]} 1. e4 {[%emt 0:08:00]} c5 {[%emt 0:01:00]} 2. Nf3 {[%emt 0:00:30]} e6 {[%emt 0:00:30]} 3. d4 {[%emt 0:00:30]} cxd4 {[%emt 0:00:30]} 4. Nxd4 {[%emt 0:00:30]} Nc6 {[%emt 0:00:30]} 5. Nc3 {[%emt 0:00:00]} Qc7 {[%emt 0:00:00]} 6. Be3 {[%emt 0:03:00]} a6 {[%emt 0:00:00]} 7. Qf3 {[%emt 0:00:30]} Nf6 {[%emt 0:00:00][%cal Of8a3]} 8. O-O-O {[%emt 0:00:30]} Ne5 {[%emt 0:00:00]} 9. Qg3 {[%emt 0:00:30] Weiß hat minimalen Vorteil.} b5 {[%emt 0:00:30]} 10. Bxb5 {[%emt 0:00:30]} axb5 {[%emt 0:00:30] Die Stellung ist ausgeglichen.} 11. Ndxb5 {[%emt 0:00:30]} Qb8 {[%emt 0:00:30][%cal Of6e4] [#] Weiss muss nun ...Nxe4! beachten.} 12. Bf4 $1 {[%emt 0:00:30]} d6 {[%emt 0:00:30]} 13. Rxd6 {[%emt 0:00:30]} Nh5 $1 {[%emt 0:00:00]} (13... Bxd6 14. Nxd6+ (14. Qxg7 $2 {verliert.} Nd3+ 15. Kb1 Nxf4 $19) 14... Qxd6 15. Bxe5 $14) 14. Qg5 {[%emt 0:03:30]} Bxd6 {[%emt 0:00:00]} 15. Nxd6+ {[%emt 0:00:00]} Qxd6 {[%emt 0:00:00]} 16. Bxe5 {[%emt 0:00:00]} Ra5 $1 {[%emt 0:00:00]} 17. Nd5 {[%emt 0:01:30]} Qd7 {[%emt 0:00:00]} 18. Bxg7 {[%emt 0:05:30]} Rg8 {[%emt 0:00:00]} 19. Qxh5 {[%emt 0:02:30]} exd5 {[%emt 0:00:00]} (19... Rxg7 $2 20. Nf6+ Ke7 21. Qxa5 $18) 20. Qxh7 {[%emt 0:00:30]} Rxg7 {[%emt 0:00:00]} 21. Qxg7 {[%emt 0:01:30] [#] Droht Qh8+ und aus.} Rxa2 {[%emt 0:00:00] ...Ra1+ ist eine echte Drohung.} 22. Qh8+ {[%emt 0:00:30]} Ke7 {[%emt 0:00:00] Droht stark ...Ra1+.} 23. Qe5+ {[%emt 0:00:30]} Kf8 {[%emt 0:00:30] Und jetzt ...Ra1+ wäre schön.} 24. Qh8+ {[%emt 0:00:00] Nicht viel passiert in dieser Partie.   Gewichteter Fehlerwert: Weiß=0.04 (makellos) /Schwarz=0.01 (makellos) .  Ungenau:       	Weiß=1     	---        OK:         	Weiß=10    	Schwarz=8     Bester:       	---       	Schwarz=3     Stark:        	Weiß=1     	Schwarz=2} (24. Qxd5 $2 {zu gefräßig.} Ra1+ (24... Qxd5 $2 25. exd5 Ra1+ 26. Kd2 $19) 25. Kd2 Rxh1 $19 (25... Qxd5+ $2 26. exd5 Rxh1 27. Ke2 $19)) 1/2-1/2

[Event "Turkish-ch Youth U17 2024"]
[Site "Belek Antalya"]
[Date "2024.01.26"]
[Round "8"]
[White "Saridag, Omer Melih"]
[Black "Portakalci, Yusuf"]
[Result "0-1"]
[ECO "D36"]
[WhiteElo "2002"]
[BlackElo "1951"]
[Annotator "NA RC"]
[PlyCount "88"]
[EventDate "2024.01.21"]
[EventType "swiss"]
[EventCountry "TUR"]
[SourceTitle "playchess.com"]
[Source "ChessBase"]
[SourceQuality "1"]
[TimeControl "5400+30"]

1. d4 {[%emt 0:02:00]} Nf6 {[%emt 0:01:00]} 2. c4 {[%emt 0:00:30]} e6 {[%emt 0:00:30]} 3. Nf3 {[%emt 0:00:30]} d5 {[%emt 0:01:30]} 4. Nc3 {[%emt 0:04:30]} Be7 {[%emt 0:00:30]} 5. cxd5 {[%emt 0:00:30]} exd5 {[%emt 0:00:00]} 6. Bg5 {[%emt 0:00:30]} c6 {[%emt 0:01:00]} 7. e3 {[%emt 0:00:30]} Nbd7 {[%emt 0:00:30]} 8. Bd3 {[%emt 0:00:30]} O-O {[%emt 0:09:30]} 9. Qc2 {[%emt 0:02:30]} Re8 {[%emt 0:02:30]} 10. O-O {[%emt 0:01:30]} Nf8 {[%emt 0:14:30]} 11. Rab1 {[%emt 0:05:30]} g6 {[%emt 0:01:30]} 12. b4 {[%emt 0:03:30]} Ne6 {[%emt 0:05:30]} 13. Bh4 {[%emt 0:05:30]} a6 {[%emt 0:18:30] D36: Queen's Gambit Declined: Exchange Variation: Main line (5 Bg5 c6 6 Qc2).} 14. a4 {[%emt 0:11:30]} a5 {[%emt 0:15:30]} 15. b5 {[%emt 0:01:30]} Nd7 {[%emt 0:04:30]} (15... c5 $14) 16. Bg3 {[%emt 0:05:30]} Nf6 {[%emt 0:01:52] [#]} (16... Bf6 $16 17. Rfc1 h5) 17. bxc6 $1 {[%emt 0:04:30]} bxc6 {[%emt 0:00:08]} 18. Ne5 {[%emt 0:04:30]} Bd7 {[%emt 0:00:30]} 19. Na2 {[%emt 0:03:30]} Rc8 {[%emt 0:11:14]} ({Black should play} 19... c5 $14) 20. Ba6 {[%emt 0:01:30]} Ra8 {[%emt 0:02:09]} (20... Rc7 $16 {war nötig.}) 21. Bb7 {[%emt 0:11:30]} Ra7 {[%emt 0:00:18]} 22. Bxc6 $18 {[%emt 0:01:30]} ({Jedoch nicht} 22. Nxc6 Bxc6 23. Bxc6 Rf8) 22... Qc8 {[%emt 0:01:57]} 23. Rfc1 {[%emt 0:04:30]} Ba3 {[%emt 0:00:30]} 24. Bxd7 {[%emt 0:00:30]} Qxc2 {[%emt 0:00:30]} 25. Rxc2 {[%emt 0:00:30]} Nxd7 {[%emt 0:01:09]} 26. Nc6 {[%emt 0:02:30]} Ra6 {[%emt 0:00:01]} 27. Rc3 {[%emt 0:05:26]} Bf8 {[%emt 0:02:40]} 28. Rb5 {[%emt 0:00:30]} Rxc6 {[%emt 0:00:30]} 29. Rxc6 {[%emt 0:00:30]} Nxd4 {[%emt 0:00:30]} 30. Ra6 {[%emt 0:00:30]} Nxb5 {[%emt 0:00:30]} 31. axb5 {[%emt 0:07:34]} d4 {[%emt 0:02:26]} 32. Kf1 {[%emt 0:05:19]} dxe3 {[%emt 0:01:41]} 33. fxe3 {[%emt 0:00:32]} Rxe3 {[%emt 0:00:30]} 34. Rxa5 {[%emt 0:00:00]} Rb3 {[%emt 0:00:00]} 35. Ke2 {[%emt 0:01:03]} Nb6 {[%emt 0:00:25]} 36. Nc1 {[%emt 0:01:08]} Rb2+ {[%emt 0:00:36]} 37. Kf3 {[%emt 0:00:29]} Nc4 {[%emt 0:00:00]} 38. Ra4 {[%emt 0:00:59]} Nd2+ {[%emt 0:00:04]} 39. Kg4 {[%emt 0:01:44]} Rxb5 {[%emt 0:00:42]} 40. Bf4 {[%emt 0:00:56]} f5+ {[%emt 0:00:49]} 41. Kg3 {[%emt 0:01:42]} Ne4+ {[%emt 0:00:38]} 42. Kf3 {[%emt 0:00:23]} g5 {[%emt 0:00:35]} 43. Be3 {[%emt 0:01:00]} g4+ {[%emt 0:00:30]} 44. Ke2 {[%emt 0:00:30]} Nc3+ {[%emt 0:00:00]} 0-1

[Event "Turkish-ch Youth U17 2024"]
[Site "Belek Antalya"]
[Date "2024.01.26"]
[Round "8"]
[White "Sezis, Doruk"]
[Black "Orhon, Bora"]
[Result "0-1"]
[ECO "C03"]
[WhiteElo "2001"]
[BlackElo "1937"]
[Annotator "NA RC"]
[PlyCount "63"]
[EventDate "2024.01.21"]
[EventType "swiss"]
[EventCountry "TUR"]
[SourceTitle "playchess.com"]
[Source "ChessBase"]
[SourceQuality "1"]
[TimeControl "5400+30"]

1. e4 {[%emt 0:01:00]} e6 {[%emt 0:02:00]} 2. d4 {[%emt 0:00:30]} d5 {[%emt 0:00:00]} 3. Nd2 {[%emt 0:00:30]} Be7 {[%emt 0:00:00]} 4. e5 {[%emt 0:00:30]} c5 {[%emt 0:00:30]} 5. c3 {[%emt 0:00:00]} Nc6 {[%emt 0:05:30]} 6. Bd3 {[%emt 0:01:00] C03: French Tarrasch: Unusual Black 3rd moves.} cxd4 {[%emt 0:02:30]} 7. cxd4 {[%emt 0:00:30]} Qb6 {[%emt 0:00:30]} 8. Ndf3 {[%emt 0:01:30]} Bd7 {[%emt 0:05:30]} 9. Ne2 {[%emt 0:00:30]} Nb4 {[%emt 0:03:30]} 10. Bb1 {[%emt 0:00:30]} Bb5 {[%emt 0:00:00]} 11. O-O {[%emt 0:03:30]} Qa6 {[%emt 0:00:00]} 12. Re1 {[%emt 0:00:30]} Nd3 {[%emt 0:01:30]} 13. Bxd3 {[%emt 0:00:30]} Bxd3 {[%emt 0:00:00]} 14. Nf4 {[%emt 0:00:00]} Bf5 {[%emt 0:00:00]} 15. h4 {[%emt 0:19:00]} Bd8 {[%emt 0:23:30]} 16. h5 {[%emt 0:31:30]} h6 {[%emt 0:04:30]} 17. Nd2 {[%emt 0:08:30]} Ne7 {[%emt 0:09:30]} 18. Nb3 {[%emt 0:01:30]} Rc8 {[%emt 0:03:30]} 19. Bd2 {[%emt 0:02:30]} Qa4 {[%emt 0:08:30]} 20. Bc3 {[%emt 0:03:30]} Nc6 {[%emt 0:05:30]} (20... b6 $17) 21. Qf3 $1 {[%emt 0:02:30]} Ne7 {[%emt 0:04:30]} 22. Nc5 {[%emt 0:01:30]} Qc6 $11 {[%emt 0:02:37]} 23. g4 {[%emt 0:05:11]} Bh7 {[%emt 0:02:14]} 24. a4 {[%emt 0:00:36]} b6 {[%emt 0:00:30]} 25. Ncd3 {[%emt 0:01:14]} a5 {[%emt 0:03:53]} 26. Qe3 {[%emt 0:00:30]} Qd7 {[%emt 0:00:51]} 27. Ng2 {[%emt 0:07:00]} Nc6 {[%emt 0:00:30]} 28. f4 {[%emt 0:00:30]} Be7 {[%emt 0:00:30]} 29. Qf2 {[%emt 0:00:30]} Bxd3 {[%emt 0:00:30]} 30. Rad1 {[%emt 0:00:30]} Be4 {[%emt 0:00:30]} 31. f5 {[%emt 0:00:30]} exf5 {[%emt 0:00:30]} 32. e6 {[%emt 0:05:20]} 0-1

[Event "Turkish-ch Youth U17 2024"]
[Site "Belek Antalya"]
[Date "2024.01.26"]
[Round "8"]
[White "Yilmaz, Kerem Tuna"]
[Black "Eroz, Enis"]
[Result "1-0"]
[ECO "C10"]
[WhiteElo "1945"]
[BlackElo "1840"]
[Annotator "TA"]
[PlyCount "59"]
[EventDate "2024.01.21"]
[EventType "swiss"]
[EventCountry "TUR"]
[SourceTitle "playchess.com"]
[Source "ChessBase"]
[SourceQuality "1"]
[TimeControl "5400+30"]

{[%evp 9,59,66,56,62,47,54,58,54,54,53,44,58,94,89,102,98,103,95,100,92,103,109,229,229,225,239,279,257,299,292,304,292,279,291,266,279,288,206,215,162,305,237,251,266,260,269,260,253,311,311,390,386]} 1. e4 {[%emt 0:01:00]} e6 {[%emt 0:01:00]} 2. d4 {[%emt 0:00:30]} d5 {[%emt 0:00:30]} 3. Nd2 {[%emt 0:00:30]} c5 {[%emt 0:00:00]} 4. Ngf3 {[%emt 0:00:00]} dxe4 {[%emt 0:02:00]} 5. Nxe4 {[%emt 0:00:00]} cxd4 {[%emt 0:01:30]} 6. Qxd4 {[%emt 0:11:30]} Qxd4 {[%emt 0:12:30]} 7. Nxd4 {[%emt 0:00:30]} a6 $1 {[%emt 0:04:30] Prevents Nb5} 8. Bf4 {[%emt 0:02:30] White is slightly better.} Nf6 {[%emt 0:01:30]} 9. Nd6+ {[%emt 0:02:30]} Bxd6 {[%emt 0:01:30]} 10. Bxd6 {[%emt 0:00:30]} Ne4 {[%emt 0:00:30] Black is now going downhill.} 11. Ba3 {[%emt 0:01:30] White is more active.} e5 {[%emt 0:01:30]} 12. Nb3 {[%emt 0:01:30]} Nc6 {[%emt 0:01:30]} 13. Bd3 {[%emt 0:33:30][%cal Bf1d3,Bd3f5,Bf5h3][%mdl 32]} Nf6 {[%emt 0:00:00]} 14. O-O-O $36 {[%emt 0:04:30][%mdl 2048] Keeping Black busy.} Bg4 {[%emt 0:20:00]} 15. f3 {[%emt 0:00:30]} Bh5 {[%emt 0:01:30] [#]} (15... Be6 $16 16. Nc5 O-O-O 17. Nxe6 fxe6) 16. Bf5 $1 $18 {[%emt 0:08:30]} Bg6 {[%emt 0:02:30]} 17. Bh3 {[%emt 0:00:30]} b5 {[%emt 0:16:30]} 18. Bd6 {[%emt 0:02:30]} Ra7 {[%emt 0:02:30]} 19. Nc5 {[%emt 0:05:30][%cal Bb3c5,Bc5d7,Bd7f6,Bf6d5,Bd5f4][%mdl 32]} Ne7 {[%emt 0:11:18]} 20. Bxe5 {[%emt 0:05:17] A strong pair of Bishops.} O-O {[%emt 0:00:30]} 21. Bxf6 {[%emt 0:00:30]} gxf6 {[%emt 0:00:30]} 22. Nd7 {[%emt 0:00:30]} Rfa8 {[%emt 0:00:30]} 23. Nxf6+ {[%emt 0:00:30]} Kg7 {[%emt 0:00:30]} 24. Nd5 {[%emt 0:02:33]} Nc6 {[%emt 0:00:00]} (24... Nxd5 {was called for.} 25. Rxd5 Rc7) 25. Nf4 {[%emt 0:00:41]} Rc7 {[%emt 0:00:18]} 26. Rd7 {[%emt 0:00:30]} Rxd7 {[%emt 0:00:30]} 27. Bxd7 {[%emt 0:00:30]} Ne5 {[%emt 0:00:31]} 28. Rd1 {[%emt 0:03:36]} Rd8 {[%emt 0:00:30]} 29. Bh3 {[%emt 0:00:30]} Re8 {[%emt 0:01:25]} 30. b3 {[%emt 0:03:06] Weighted Error Value: White=0.10 (very precise) /Black=0.23 (precise) .  Mistake:       	---       	Black=2      Inaccurate:     	---       	Black=1      OK:         	White=13    	Black=7      Best:        	White=1     	Black=1      Strong:       	---       	Black=1} 1-0

[Event "Turkish-ch Youth U17 2024"]
[Site "Belek Antalya"]
[Date "2024.01.26"]
[Round "8"]
[White "Kazik, Oguz Kagan"]
[Black "Tutuncu, Ali"]
[Result "1-0"]
[ECO "C62"]
[WhiteElo "1897"]
[BlackElo "1978"]
[Annotator "TA"]
[PlyCount "99"]
[EventDate "2024.01.21"]
[EventType "swiss"]
[EventCountry "TUR"]
[SourceTitle "playchess.com"]
[Source "ChessBase"]
[SourceQuality "1"]
[TimeControl "5400+30"]

{[%evp 10,99,78,63,65,60,109,89,107,99,114,114,133,122,138,92,105,99,141,137,140,144,154,164,151,163,163,154,158,145,164,130,142,121,201,196,206,191,193,177,296,294,281,203,298,297,315,299,375,369,434,397,518,534,581,572,592,589,592,579,572,564,559,524,487,388,598,595,502,488,692,685,1072,1030,2184,2197,5293,5197,29985,29986,29988,29989,29988,29989,29996,7100,7208,735,29993,29994,29997,29998]} 1. e4 {[%emt 0:01:00]} e5 {[%emt 0:01:00]} 2. Nf3 {[%emt 0:01:30]} Nc6 {[%emt 0:00:00]} 3. Bb5 {[%emt 0:05:30]} d6 {[%emt 0:00:00]} 4. d4 {[%emt 0:00:30]} Bd7 {[%emt 0:00:30]} 5. Nc3 {[%emt 0:00:30]} Nge7 {[%emt 0:00:30]} 6. O-O {[%emt 0:11:30]} h6 {[%emt 0:00:00]} 7. Be3 {[%emt 0:05:30]} g5 {[%emt 0:05:00]} (7... Ng6 $14) 8. dxe5 $16 {[%emt 0:11:30]} dxe5 {[%emt 0:02:30] White is better.} 9. Nd5 {[%emt 0:12:30][%cal Rd5f6]} Ng6 {[%emt 0:01:30]} 10. Qd2 {[%emt 0:01:30][%cal Rf3g5] White is much more active. The black rooks are passive.} a6 {[%emt 0:07:30] [#]} 11. Rfd1 $1 {[%emt 0:06:30][%cal Od5f6] Nf6+! would now be deadly.} Bd6 {[%emt 0:01:30]} (11... axb5 12. Nf6+ Ke7 13. Nxd7) 12. Bxc6 {[%emt 0:04:30]} (12. Be2 $142) 12... Bxc6 {[%emt 0:09:30]} 13. c4 {[%emt 0:01:30][%cal Bc2c4,Bc4c5][%mdl 32]} O-O {[%emt 0:15:30]} 14. c5 {[%emt 0:11:30]} Be7 {[%emt 0:00:30]} 15. Qc2 {[%emt 0:03:33]} Bf6 {[%emt 0:03:30] [#]} 16. Nb6 $1 {[%emt 0:03:18][%mdl 512]} Qe7 {[%emt 0:01:30]} 17. Nxa8 {[%emt 0:00:34]} Rxa8 {[%emt 0:00:00]} 18. Nd2 {[%emt 0:00:03][%cal Bf3d2,Bd2f1,Bf1g3,Bg3f5][%mdl 32]} Qe6 {[%emt 0:04:00]} 19. Nf1 {[%emt 0:01:32]} h5 {[%emt 0:06:30][%cal Bh6h5,Bh5h4][%mdl 32]} 20. Ng3 {[%emt 0:01:37]} h4 {[%emt 0:00:30]} 21. Nf5 {[%emt 0:00:30]} Nf4 {[%emt 0:00:30]} (21... Ne7 $16 {is a better defense.} 22. Nxe7+ Bxe7) 22. f3 $18 {[%emt 0:01:11]} Kh7 {[%emt 0:01:30]} 23. Bxf4 {[%emt 0:02:38]} exf4 {[%emt 0:03:30]} 24. Nd4 {[%emt 0:02:54]} Qe5 {[%emt 0:01:30]} (24... Bxd4+ $142 25. Rxd4 h3) 25. Nxc6 {[%emt 0:01:18]} bxc6 {[%emt 0:00:00]} 26. h3 {[%emt 0:01:13]} Rb8 {[%emt 0:00:00]} (26... Qxb2 {was necessary.} 27. Qc4 Kg7) 27. b3 {[%emt 0:00:00]} Rb5 {[%emt 0:01:30]} 28. Rac1 {[%emt 0:00:17]} Be7 {[%emt 0:00:00]} 29. Qc4 {[%emt 0:00:23]} Kg6 {[%emt 0:00:00]} 30. a4 {[%emt 0:01:14]} Rxc5 {[%emt 0:05:30]} 31. Qxa6 {[%emt 0:00:30]} g4 {[%emt 0:00:30]} 32. hxg4 {[%emt 0:00:30]} h3 {[%emt 0:00:30]} 33. gxh3 {[%emt 0:01:51]} Qb2 {[%emt 0:09:30]} 34. Rxc5 {[%emt 0:01:16]} Bxc5+ {[%emt 0:00:30][%mdl 4096] Endgame. KQR-KQB} 35. Kh1 {[%emt 0:00:30]} Qxb3 {[%emt 0:00:30]} 36. Qe2 {[%emt 0:00:30]} Qxa4 {[%emt 0:00:30]} 37. Kg2 {[%emt 0:00:30]} Be3 {[%emt 0:00:30]} (37... Bd4 $142 38. h4 Kg7) 38. h4 {[%emt 0:00:30][%cal Bh3h4,Bh4h5][%mdl 32]} c5 {[%emt 0:00:30][%cal Bc6c5,Bc5c4][%mdl 32]} 39. h5+ {[%emt 0:00:30]} Kh7 {[%emt 0:00:30]} (39... Kh6 $142 40. e5 Kg7) 40. g5 {[%emt 0:00:30] Hoping for e5.} c4 {[%emt 0:00:30]} 41. e5 {[%emt 0:00:30] And now Rd8 would win.} Qb3 {[%emt 0:00:30]} 42. Kh3 {[%emt 0:00:30] Threatens to win with Rd7.} Kg7 {[%emt 0:00:00]} 43. Kh4 {[%emt 0:05:45] White threatens h6+ and mate.} Qc3 {[%emt 0:00:00] [#]} 44. e6 $1 {[%emt 0:00:30]} fxe6 {[%emt 0:00:00]} (44... Kf8 45. Rd8+) 45. Rd7+ {[%emt 0:00:30]} Kf8 {[%emt 0:00:00]} 46. Qd1 {[%emt 0:00:30]} Bc5 {[%emt 0:00:30]} 47. Rxc7 {[%emt 0:00:00]} (47. Rd8+ $142 Kf7 48. Qd7+ Be7 49. Qe8+ Kg7 50. Qxe7#) 47... Bd4 {[%emt 0:04:38]} 48. Rd7 {[%emt 0:00:33]} (48. Qb1 $142 Bb6 49. Rc8+ (49. Qxb6 $2 {is a self mate.} Qe1+) 49... Ke7 50. Qe4 (50. Qxb6 $2 Qe1+)) 48... e5 {[%emt 0:00:42]} 49. Qb1 {[%emt 0:00:19][%cal Rb1b8]} Qb2 {[%emt 0:00:18]} 50. Qf5+ {[%emt 0:00:03] Weighted Error Value: White=0.11 (very precise) /Black=0.60.  Mistake:       	White=1     	Black=6      Inaccurate:     	---       	Black=3      OK:         	White=22    	Black=10     Best:        	White=1     	---        Brilliant:      	White=1     	---} 1-0

[Event "Turkish-ch Youth U17 2024"]
[Site "Belek Antalya"]
[Date "2024.01.26"]
[Round "8"]
[White "Mustu, Hatice Asli"]
[Black "Celik, Almina"]
[Result "1-0"]
[ECO "E01"]
[WhiteElo "1841"]
[BlackElo "1303"]
[Annotator "NA RC COMBH"]
[PlyCount "69"]
[EventDate "2024.01.21"]
[EventType "swiss"]
[EventCountry "TUR"]
[SourceTitle "playchess.com"]
[Source "ChessBase"]
[SourceQuality "1"]
[TimeControl "5400+30"]

1. d4 {[%emt 0:01:00]} Nf6 {[%emt 0:01:00]} 2. Nf3 {[%emt 0:00:30]} e6 {[%emt 0:00:30]} 3. c4 {[%emt 0:00:00]} d5 {[%emt 0:00:00]} 4. g3 {[%emt 0:00:00]} c6 {[%emt 0:01:00]} 5. Bg2 {[%emt 0:00:00]} Nbd7 {[%emt 0:00:30]} 6. O-O {[%emt 0:00:00]} Bd6 {[%emt 0:02:30]} 7. Nbd2 {[%emt 0:02:30]} O-O {[%emt 0:01:30]} 8. Qc2 {[%emt 0:05:30]} b6 {[%emt 0:05:30]} 9. e4 {[%emt 0:03:30]} dxe4 {[%emt 0:05:30]} 10. Nxe4 {[%emt 0:00:00]} Nxe4 {[%emt 0:03:30]} 11. Qxe4 {[%emt 0:00:00]} Bb7 {[%emt 0:02:30]} 12. Rd1 {[%emt 0:01:30]} Qc7 {[%emt 0:03:30] E01: Catalan: Early deviations.} 13. Qd3 {[%emt 0:04:30]} Rfd8 {[%emt 0:06:30]} 14. Ng5 {[%emt 0:10:30]} Nf6 {[%emt 0:02:30]} 15. Ne4 {[%emt 0:05:30]} Nxe4 {[%emt 0:08:30]} 16. Qxe4 {[%emt 0:03:30]} Rab8 {[%emt 0:03:30]} 17. Bg5 {[%emt 0:01:30]} c5 {[%emt 0:03:30]} 18. Bxd8 {[%emt 0:00:30]} Qxd8 {[%emt 0:01:30]} 19. Qd3 {[%emt 0:00:30]} Be7 {[%emt 0:05:30]} 20. dxc5 {[%emt 0:01:30]} Bxg2 {[%emt 0:00:30]} 21. Qxd8+ {[%emt 0:00:30]} Bxd8 {[%emt 0:00:30]} 22. Kxg2 {[%emt 0:00:30]} bxc5 {[%emt 0:00:30]} 23. Rd7 {[%emt 0:00:00]} Bf6 {[%emt 0:02:30]} 24. Rxa7 {[%emt 0:03:00]} h6 {[%emt 0:00:30]} 25. Rb1 {[%emt 0:00:00]} Bd4 {[%emt 0:01:30]} 26. b3 {[%emt 0:02:00]} e5 {[%emt 0:00:30]} 27. a4 {[%emt 0:01:30]} e4 $18 {[%emt 0:02:30]} 28. a5 {[%emt 0:00:30]} e3 {[%emt 0:01:30]} 29. fxe3 {[%emt 0:00:30]} Bxe3 {[%emt 0:00:00]} 30. a6 {[%emt 0:00:00]} Bd4 {[%emt 0:00:00]} 31. Rb7 {[%emt 0:00:00]} Ra8 {[%emt 0:00:30]} 32. a7 {[%emt 0:00:30]} Be5 {[%emt 0:00:30]} 33. Re1 {[%emt 0:00:30]} Bd6 {[%emt 0:01:30]} 34. Rd1 {[%emt 0:00:30]} Be5 {[%emt 0:00:30]} 35. Rd5 {[%emt 0:00:00]} 1-0